Workbook

Sheet Creciente
C3: Meta | S3: Aportación Mensual | T3: =IF(F6<S8,0,IF(F6<S9,1000,IF(F6<S10,2000,IF(F6<S11,5000,10000)))) -> 5000
S4: Tasa anual efectiva | T4: =VLOOKUP(T3,S8:AM11,F7+1,FALSE) -> 0.11625
C5: Capital Inicial | F5: 50000 | S5: Tasa anual | T5: =VLOOKUP(T4,T14:U21,2,TRUE) -> 0.125
C6: Aportación Mensual | F6: 5000 | S6: Tasa mensual efectiva | T6: =T4/12 -> 0.0096875
C7: Años | F7: 20 | K7: Restaurar fórmulas tablas | M7: Habilitar aportaciones manuales | T7: 1 | U7: 2 | V7: 3 | W7: 4 | X7: 5 | Y7: 6 | Z7: 7 | AA7: 8 | AB7: 9 | AC7: 10 | AD7: 11 | AE7: 12 | AF7: 13 | AG7: 14 | AH7: 15 | AI7: 16 | AJ7: 17 | AK7: 18 | AL7: 19 | AM7: 20
C8: Tasa anual efectiva | F8: =T5 -> 0.125 | S8: 1000 | T8: 0.093 | U8: 0.09765 | V8: 0.1023 | W8: 0.10695 | X8: 0.1116 | Y8: 0.1116 | Z8: 0.1116 | AA8: 0.1116 | AB8: 0.1116 | AC8: 0.1116 | AD8: =AC8 -> 0.1116 | AE8: =AD8 -> 0.1116 | AF8: 0.1116 | AG8: 0.1116 | AH8: 0.1116 | AI8: 0.1116 | AJ8: 0.1116 | AK8: 0.1116 | AL8: 0.1116 | AM8: 0.1116
C9: Incremento aportación c/ año | F9: 0 | S9: 2000 | T9: 0.09765 | U9: 0.1023 | V9: 0.10695 | W9: 0.1116 | X9: 0.11625 | Y9: 0.11625 | Z9: 0.11625 | AA9: 0.11625 | AB9: 0.11625 | AC9: 0.11625 | AD9: =AC9 -> 0.11625 | AE9: 0.11625 | AF9: 0.11625 | AG9: 0.11625 | AH9: 0.11625 | AI9: 0.11625 | AJ9: 0.11625 | AK9: 0.11625 | AL9: 0.11625 | AM9: 0.11625
S10: 5000 | T10: 0.1023 | U10: 0.10695 | V10: 0.1116 | W10: 0.11625 | X10: 0.11625 | Y10: 0.11625 | Z10: 0.11625 | AA10: 0.11625 | AB10: 0.11625 | AC10: 0.11625 | AD10: 0.11625 | AE10: 0.11625 | AF10: 0.11625 | AG10: 0.11625 | AH10: 0.11625 | AI10: 0.11625 | AJ10: 0.11625 | AK10: 0.11625 | AL10: 0.11625 | AM10: 0.11625
C11: Restaurar | E11: Manual | S11: 10000 | T11: 0.10695 | U11: 0.1116 | V11: 0.11625 | W11: 0.11625 | X11: 0.11625 | Y11: 0.11625 | Z11: 0.11625 | AA11: 0.11625 | AB11: 0.11625 | AC11: 0.11625 | AD11: 0.11625 | AE11: 0.11625 | AF11: 0.11625 | AG11: 0.11625 | AH11: 0.11625 | AI11: 0.11625 | AJ11: 0.11625 | AK11: 0.11625 | AL11: 0.11625 | AM11: 0.11625
B13: AÑO | C13: APORTACIONES | E13: RENDIMIENTO | G13: ACUMULADO | T13: Tasa anual efectiva | U13: Tasa anual
C14: MENSUAL | D14: SALDO | E14: MENSUAL | F14: SALDO | T14: 0.0837 | U14: 0.09
B15: 0 | C15: =F5 -> 50000 | D15: =C15 -> 50000 | E15: =D15*T6 -> 484.375 | F15: =E15 -> 484.375 | G15: =D15+F15 -> 50484.375 | T15: 0.08835 | U15: 0.095 | AD15: =AG5 -> 0
A16: =IF(C16=0,0,1) -> 1 | B16: 1 | C16: =IF(F7>=1,F$6,0) -> 5000 | D16: =(D15+C16)*A16 -> 55000 | E16: =((G15+C16)*T$6)*A16 -> 537.5048828 | F16: =(F15+E16)*A16 -> 1021.879883 | G16: =D16+F16 -> 56021.87988 | T16: 0.093 | U16: 0.1 | AD16: =IF(AG7>=1,AG$6,0) -> 0
A17: =A16 -> 1 | C17: =C16 -> 5000 | D17: =(D16+C17)*A17 -> 60000 | E17: =((G16+C17)*T$6)*A17 -> 591.1494614 | F17: =(F16+E17)*A17 -> 1613.029344 | G17: =D17+F17 -> 61613.02934 | T17: 0.09765 | U17: 0.105 | AD17: =AD16 -> 0
A18: =A17 -> 1 | C18: =C17 -> 5000 | D18: 65000 | E18: 645.3137218 | F18: 2258.343066 | G18: 67258.34307 | T18: 0.1023 | U18: 0.11 | AD18: =AD17 -> 0
A19: 1 | C19: 5000 | D19: 70000 | E19: 700.0026985 | F19: 2958.345764 | G19: 72958.34576 | T19: 0.10695 | U19: 0.115 | AD19: 0
A20: 1 | C20: 5000 | D20: 75000 | E20: 755.2214746 | F20: 3713.567239 | G20: 78713.56724 | T20: 0.1116 | U20: 0.12 | AD20: 0
A21: 1 | C21: 5000 | D21: 80000 | E21: 810.9751826 | F21: 4524.542422 | G21: 84524.54242 | T21: 0.11625 | U21: 0.125 | AD21: 0
A22: 1 | C22: 5000 | D22: 85000 | E22: 867.2690047 | F22: 5391.811426 | G22: 90391.81143 | AD22: 0
A23: 1 | C23: 5000 | D23: 90000 | E23: 924.1081732 | F23: 6315.9196 | G23: 96315.9196 | AD23: 0
A24: 1 | C24: 5000 | D24: 95000 | E24: 981.4979711 | F24: 7297.417571 | G24: 102297.4176 | AD24: 0
A25: 1 | C25: 5000 | D25: 100000 | E25: 1039.443733 | F25: 8336.861303 | G25: 108336.8613 | AD25: 0
A26: 1 | C26: 5000 | D26: 105000 | E26: 1097.950844 | F26: 9434.812147 | G26: 114434.8121 | AD26: 0
A27: 1 | C27: 5000 | D27: 110000 | E27: 1157.024743 | F27: 10591.83689 | G27: 120591.8369 | AD27: 0 | AP27: TABLA ANUAL
A28: =IF(C28=0,0,1) -> 1 | B28: 2 | C28: =IF(F$7>=2,C27*(1+F$9),0) -> 5000 | D28: =(D27+C28)*A28 -> 115000 | E28: =((G27+C28)*T$6)*A28 -> 1216.67092 | F28: =(F27+E28)*A28 -> 11808.50781 | G28: =D28+F28 -> 126808.5078 | AD28: =IF(AG$7>=2,AD27*(1+AG$9),0) -> 0 | AP28: Año | AQ28: Aportado | AR28: Rendimiento | AS28: Acumulado
A29: =A28 -> 1 | C29: 5000 | D29: 120000 | E29: 1276.894919 | F29: 13085.40273 | G29: 133085.4027 | AD29: 0 | AP29: 0 | AQ29: =C15 -> 50000 | AR29: =E15 -> 484.375 | AS29: =G15 -> 50484.375
A30: =A29 -> 1 | C30: 5000 | D30: 125000 | E30: 1337.702339 | F30: 14423.10507 | G30: 139423.1051 | AD30: 0 | AP30: 1 | AQ30: =SUM(C16:C27) -> 60000 | AR30: =SUM(D16:D27) -> 990000 | AS30: =G27 -> 120591.8369
A31: 1 | C31: 5000 | D31: 130000 | E31: 1399.09883 | F31: 15822.2039 | G31: 145822.2039 | AD31: 0 | AP31: 2 | AQ31: =SUM(C28:C39) -> 60000 | AR31: =SUM(E28:E39) -> 18706.02895 | AS31: =G39 -> 199297.8658
A32: 1 | C32: 5000 | D32: 135000 | E32: 1461.0901 | F32: 17283.294 | G32: 152283.294 | AD32: 0 | AP32: 3 | AQ32: =SUM(C42:C53) -> 60000 | AR32: =SUM(E42:E53) -> 28359.19638 | AS32: =G53 -> 287657.0622
A33: 1 | C33: 5000 | D33: 140000 | E33: 1523.681911 | F33: 18806.97591 | G33: 158806.9759 | AD33: 0 | AP33: 4 | AQ33: =SUM(C54:C65) -> 60000 | AR33: =SUM(E54:E65) -> 39196.30921 | AS33: =G65 -> 386853.3714
A34: 1 | C34: 5000 | D34: 145000 | E34: 1586.880079 | F34: 20393.85599 | G34: 165393.856 | AD34: 0 | AP34: 5 | AQ34: =SUM(C68:C79) -> 60000 | AR34: =SUM(E68:E79) -> 51362.57644 | AS34: =G79 -> 498215.9479
A35: 1 | C35: 5000 | D35: 150000 | E35: 1650.69048 | F35: 22044.54647 | G35: 172044.5465 | AD35: 0 | AP35: 6 | AQ35: =SUM(C80:C91) -> 60000 | AR35: =SUM(E80:E91) -> 65021.01672 | AS35: =G91 -> 623236.9646
A36: 1 | C36: 5000 | D36: 155000 | E36: 1715.119044 | F36: 23759.66551 | G36: 178759.6655 | AD36: 0 | AP36: 7 | AQ36: =SUM(C94:C105) -> 60000 | AR36: =SUM(E94:E105) -> 80354.64265 | AS36: =G105 -> 763591.6072
A37: 1 | C37: 5000 | D37: 160000 | E37: 1780.17176 | F37: 25539.83727 | G37: 185539.8373 | AD37: 0 | AP37: 8 | AQ37: =SUM(C106:C117) -> 60000 | AR37: =SUM(E106:E117) -> 97568.91306 | AS37: =G117 -> 921160.5203
A38: 1 | C38: 5000 | D38: 165000 | E38: 1845.854674 | F38: 27385.69195 | G38: 192385.6919 | AD38: 0 | AP38: 9 | AQ38: =SUM(C120:C131) -> 60000 | AR38: =SUM(E120:E131) -> 116894.486 | AS38: =G131 -> 1098055.006
A39: 1 | C39: 5000 | D39: 170000 | E39: 1912.173891 | F39: 29297.86584 | G39: 199297.8658 | AD39: 0 | AP39: 10 | AQ39: =SUM(C132:C143) -> 60000 | AR39: =SUM(E132:E143) -> 138590.3092 | AS39: =G143 -> 1296645.315
B40: AÑO | C40: APORTACIONES | E40: RENDIMIENTO | G40: ACUMULADO | AP40: 11 | AQ40: =SUM(C146:C157) -> 60000 | AR40: =SUM(E146:E157) -> 162947.0901 | AS40: =G157 -> 1519592.406
C41: MENSUAL | D41: SALDO | E41: MENSUAL | F41: SALDO | AP41: 12 | AQ41: =SUM(C158:C169) -> 60000 | AR41: =SUM(E158:E169) -> 190291.1909 | AS41: =G169 -> 1769883.596
A42: =IF(C42=0,0,1) -> 1 | B42: 3 | C42: =IF(F$7>=3,C39*(1+F$9),0) -> 5000 | D42: =(D39+C42)*A42 -> 175000 | E42: =((G39+C42)*T$6)*A42 -> 1979.135575 | F42: =(F39+E42)*A42 -> 31277.00141 | G42: 206277.0014 | AD42: =IF(AG$7>=3,AD39*(1+AG$9),0) -> 0 | AP42: 13 | AQ42: =SUM(C172:C183) -> 60000 | AR42: =SUM(E172:E183) -> 220989.0015 | AS42: =G183 -> 2050872.598
A43: =A42 -> 1 | C43: 5000 | D43: 180000 | E43: 2046.745951 | F43: 33323.74736 | G43: 213323.7474 | AD43: 0 | AP43: 14 | AQ43: =SUM(C184:C195) -> 60000 | AR43: =SUM(E184:E195) -> 255451.8491 | AS43: =G195 -> 2366324.447
A44: =A43 -> 1 | C44: 5000 | D44: 185000 | E44: 2115.011303 | F44: 35438.75867 | G44: 220438.7587 | AD44: 0 | AP44: 15 | AQ44: =SUM(C198:C209) -> 60000 | AR44: =SUM(E198:E209) -> 294141.5092 | AS44: =G209 -> 2720465.956
A45: 1 | C45: 5000 | D45: 190000 | E45: 2183.937975 | F45: 37622.69664 | G45: 227622.6966 | AD45: 0 | AP45: 16 | AQ45: =SUM(C210:C221) -> 60000 | AR45: =SUM(E210:E221) -> 337576.3938 | AS45: =G221 -> 3118042.35
A46: 1 | C46: 5000 | D46: 195000 | E46: 2253.532374 | F46: 39876.22901 | G46: 234876.229 | AD46: 0 | AP46: 17 | AQ46: =SUM(C224:C235) -> 60000 | AR46: =SUM(E224:E235) -> 386338.4969 | AS46: =G235 -> 3564380.847
A47: 1 | C47: 5000 | D47: 200000 | E47: 2323.800969 | F47: 42200.02998 | G47: 242200.03 | AD47: 0 | AP47: 18 | AQ47: =SUM(C236:C247) -> 60000 | AR47: =SUM(E236:E247) -> 441081.1932 | AS47: =G247 -> 4065462.04
A48: 1 | C48: 5000 | D48: 205000 | E48: 2394.75029 | F48: 44594.78027 | G48: 249594.7803 | AD48: 0 | AP48: 19 | AQ48: =SUM(C250:C261) -> 60000 | AR48: =SUM(E250:E261) -> 502537.9929 | AS48: =G261 -> 4628000.033
A49: 1 | C49: 5000 | D49: 210000 | E49: 2466.386934 | F49: 47061.16721 | G49: 257061.1672 | AD49: 0 | AP49: 20 | AQ49: =SUM(C262:C273) -> 60000 | AR49: =SUM(E262:E273) -> 571532.3698 | AS49: =G273 -> 5259532.403
A50: 1 | C50: 5000 | D50: 215000 | E50: 2538.717557 | F50: 49599.88476 | G50: 264599.8848 | AD50: 0
A51: 1 | C51: 5000 | D51: 220000 | E51: 2611.748884 | F51: 52211.63365 | G51: 272211.6336 | AD51: 0
A52: 1 | C52: 5000 | D52: 225000 | E52: 2685.487701 | F52: 54897.12135 | G52: 279897.1213 | AD52: 0
A53: 1 | C53: 5000 | D53: 230000 | E53: 2759.940863 | F53: 57657.06221 | G53: 287657.0622 | AD53: 0
A54: =IF(C54=0,0,1) -> 1 | B54: 4 | C54: =IF(F$7>=4,C53*(1+F$9),0) -> 5000 | D54: 235000 | E54: 2835.11529 | F54: 60492.1775 | G54: 295492.1775 | AD54: =IF(AG$7>=4,AD53*(1+AG$9),0) -> 0
A55: =A54 -> 1 | C55: 5000 | D55: 240000 | E55: 2911.01797 | F55: 63403.19547 | G55: 303403.1955 | AD55: 0
A56: =A55 -> 1 | C56: 5000 | D56: 245000 | E56: 2987.655956 | F56: 66390.85143 | G56: 311390.8514 | AD56: 0
A57: 1 | C57: 5000 | D57: 250000 | E57: 3065.036373 | F57: 69455.8878 | G57: 319455.8878 | AD57: 0
A58: 1 | C58: 5000 | D58: 255000 | E58: 3143.166413 | F58: 72599.05421 | G58: 327599.0542 | AD58: 0
A59: 1 | C59: 5000 | D59: 260000 | E59: 3222.053338 | F59: 75821.10755 | G59: 335821.1076 | AD59: 0
A60: 1 | C60: 5000 | D60: 265000 | E60: 3301.704479 | F60: 79122.81203 | G60: 344122.812 | AD60: 0
A61: 1 | C61: 5000 | D61: 270000 | E61: 3382.127242 | F61: 82504.93927 | G61: 352504.9393 | AD61: 0
A62: 1 | C62: 5000 | D62: 275000 | E62: 3463.329099 | F62: 85968.26837 | G62: 360968.2684 | AD62: 0
A63: 1 | C63: 5000 | D63: 280000 | E63: 3545.3176 | F63: 89513.58597 | G63: 369513.586 | AD63: 0
A64: 1 | C64: 5000 | D64: 285000 | E64: 3628.100364 | F64: 93141.68634 | G64: 378141.6863 | AD64: 0
A65: 1 | C65: 5000 | D65: 290000 | E65: 3711.685086 | F65: 96853.37142 | G65: 386853.3714 | AD65: 0
B66: AÑO | C66: APORTACIONES | E66: RENDIMIENTO | G66: ACUMULADO
C67: MENSUAL | D67: SALDO | E67: MENSUAL | F67: SALDO
A68: =IF(C68=0,0,1) -> 1 | B68: 5 | C68: =IF(F$7>=5,C65*(1+F$9),0) -> 5000 | D68: =(D65+C68)*A68 -> 295000 | E68: =((G65+C68)*T$6)*A68 -> 3796.079536 | F68: =(F65+E68)*A68 -> 100649.451 | G68: 395649.451 | AD68: =IF(AG$7>=5,AD65*(1+AG$9),0) -> 0
A69: =A68 -> 1 | C69: 5000 | D69: 300000 | E69: 3881.291556 | F69: 104530.7425 | G69: 404530.7425 | AD69: 0
A70: =A69 -> 1 | C70: 5000 | D70: 305000 | E70: 3967.329068 | F70: 108498.0716 | G70: 413498.0716 | AD70: 0
A71: 1 | C71: 5000 | D71: 310000 | E71: 4054.200068 | F71: 112552.2717 | G71: 422552.2717 | AD71: 0
A72: 1 | C72: 5000 | D72: 315000 | E72: 4141.912632 | F72: 116694.1843 | G72: 431694.1843 | AD72: 0
A73: 1 | C73: 5000 | D73: 320000 | E73: 4230.47491 | F73: 120924.6592 | G73: 440924.6592 | AD73: 0
A74: 1 | C74: 5000 | D74: 325000 | E74: 4319.895136 | F74: 125244.5543 | G74: 450244.5543 | AD74: 0
A75: 1 | C75: 5000 | D75: 330000 | E75: 4410.18162 | F75: 129654.7359 | G75: 459654.7359 | AD75: 0
A76: 1 | C76: 5000 | D76: 335000 | E76: 4501.342754 | F76: 134156.0787 | G76: 469156.0787 | AD76: 0
A77: 1 | C77: 5000 | D77: 340000 | E77: 4593.387012 | F77: 138749.4657 | G77: 478749.4657 | AD77: 0
A78: 1 | C78: 5000 | D78: 345000 | E78: 4686.322949 | F78: 143435.7887 | G78: 488435.7887 | AD78: 0
A79: 1 | C79: 5000 | D79: 350000 | E79: 4780.159203 | F79: 148215.9479 | G79: 498215.9479 | AD79: 0
A80: =IF(C80=0,0,1) -> 1 | B80: 6 | C80: =IF(F$7>=6,C79*(1+F$9),0) -> 5000 | D80: =(D79+C80)*A80 -> 355000 | E80: =((G79+C80)*T$6)*A80 -> 4874.904495 | F80: =(F79+E80)*A80 -> 153090.8524 | G80: =D80+F80 -> 508090.8524 | AD80: =IF(AG$7>=6,AD79*(1+AG$9),0) -> 0
A81: =A80 -> 1 | C81: 5000 | D81: 360000 | E81: 4970.567632 | F81: 158061.42 | G81: 518061.42 | AD81: 0
A82: =A81 -> 1 | C82: 5000 | D82: 365000 | E82: 5067.157506 | F82: 163128.5775 | G82: 528128.5775 | AD82: 0
A83: 1 | C83: 5000 | D83: 370000 | E83: 5164.683095 | F83: 168293.2606 | G83: 538293.2606 | AD83: 0
A84: 1 | C84: 5000 | D84: 375000 | E84: 5263.153462 | F84: 173556.4141 | G84: 548556.4141 | AD84: 0
A85: 1 | C85: 5000 | D85: 380000 | E85: 5362.577761 | F85: 178918.9918 | G85: 558918.9918 | AD85: 0
A86: 1 | C86: =C85 -> 5000 | D86: 385000 | E86: 5462.965233 | F86: 184381.9571 | G86: 569381.9571 | AD86: =AD85 -> 0
A87: 1 | C87: 5000 | D87: 390000 | E87: 5564.325209 | F87: 189946.2823 | G87: 579946.2823 | AD87: 0
A88: 1 | C88: 5000 | D88: 395000 | E88: 5666.667109 | F88: 195612.9494 | G88: 590612.9494 | AD88: 0
A89: 1 | C89: 5000 | D89: 400000 | E89: 5770.000447 | F89: 201382.9498 | G89: 601382.9498 | AD89: 0
A90: 1 | C90: 5000 | D90: 405000 | E90: 5874.334826 | F90: 207257.2846 | G90: 612257.2846 | AD90: 0
A91: 1 | C91: 5000 | D91: 410000 | E91: 5979.679945 | F91: 213236.9646 | G91: 623236.9646 | AD91: 0
B92: AÑO | C92: APORTACIONES | E92: RENDIMIENTO | G92: ACUMULADO
C93: MENSUAL | D93: SALDO | E93: MENSUAL | F93: SALDO
A94: =IF(C94=0,0,1) -> 1 | B94: 7 | C94: =IF(F$7>=7,C91*(1+F$9),0) -> 5000 | D94: =(D91+C94)*A94 -> 415000 | E94: =((G91+C94)*T$6)*A94 -> 6086.045594 | F94: =(F91+E94)*A94 -> 219323.0102 | G94: 634323.0102 | AD94: =IF(AG$7>=7,AD91*(1+AG$9),0) -> 0
A95: =A94 -> 1 | C95: =C94 -> 5000 | D95: 420000 | E95: 6193.441661 | F95: 225516.4518 | G95: 645516.4518 | AD95: =AD94 -> 0
A96: =A95 -> 1 | C96: 5000 | D96: 425000 | E96: 6301.878127 | F96: 231818.33 | G96: 656818.33 | AD96: 0
A97: 1 | C97: 5000 | D97: 430000 | E97: 6411.365072 | F97: 238229.695 | G97: 668229.695 | AD97: 0
A98: 1 | C98: 5000 | D98: 435000 | E98: 6521.912671 | F98: 244751.6077 | G98: 679751.6077 | AD98: 0
A99: 1 | C99: 5000 | D99: 440000 | E99: 6633.5312 | F99: 251385.1389 | G99: 691385.1389 | AD99: 0
A100: 1 | C100: 5000 | D100: 445000 | E100: 6746.231033 | F100: 258131.3699 | G100: 703131.3699 | AD100: 0
A101: 1 | C101: 5000 | D101: 450000 | E101: 6860.022646 | F101: 264991.3926 | G101: 714991.3926 | AD101: 0
A102: 1 | C102: 5000 | D102: 455000 | E102: 6974.916616 | F102: 271966.3092 | G102: 726966.3092 | AD102: 0
A103: 1 | C103: 5000 | D103: 460000 | E103: 7090.92362 | F103: 279057.2328 | G103: 739057.2328 | AD103: 0
A104: 1 | C104: 5000 | D104: 465000 | E104: 7208.054443 | F104: 286265.2873 | G104: 751265.2873 | AD104: 0
A105: 1 | C105: 5000 | D105: 470000 | E105: 7326.31997 | F105: 293591.6072 | G105: 763591.6072 | AD105: 0
A106: =IF(C106=0,0,1) -> 1 | B106: 8 | C106: =IF(F$7>=8,C105*(1+F$9),0) -> 5000 | D106: 475000 | E106: 7445.731195 | F106: 301037.3384 | G106: 776037.3384 | AD106: =IF(AG$7>=8,AD105*(1+AG$9),0) -> 0
A107: =A106 -> 1 | C107: =C106 -> 5000 | D107: 480000 | E107: 7566.299216 | F107: 308603.6377 | G107: 788603.6377 | AD107: =AD106 -> 0
A108: =A107 -> 1 | C108: 5000 | D108: 485000 | E108: 7688.03524 | F108: 316291.6729 | G108: 801291.6729 | AD108: 0
A109: 1 | C109: 5000 | D109: 490000 | E109: 7810.950581 | F109: 324102.6235 | G109: 814102.6235 | AD109: 0
A110: 1 | C110: 5000 | D110: 495000 | E110: 7935.056665 | F110: 332037.6801 | G110: 827037.6801 | AD110: 0
A111: 1 | C111: 5000 | D111: 500000 | E111: 8060.365026 | F111: 340098.0452 | G111: 840098.0452 | AD111: 0
A112: 1 | C112: 5000 | D112: 505000 | E112: 8186.887313 | F112: 348284.9325 | G112: 853284.9325 | AD112: 0
A113: 1 | C113: 5000 | D113: 510000 | E113: 8314.635283 | F113: 356599.5678 | G113: 866599.5678 | AD113: 0
A114: 1 | C114: 5000 | D114: 515000 | E114: 8443.620813 | F114: 365043.1886 | G114: 880043.1886 | AD114: 0
A115: 1 | C115: 5000 | D115: 520000 | E115: 8573.855889 | F115: 373617.0445 | G115: 893617.0445 | AD115: 0
A116: 1 | C116: 5000 | D116: 525000 | E116: 8705.352618 | F116: 382322.3971 | G116: 907322.3971 | AD116: 0
A117: 1 | C117: 5000 | D117: 530000 | E117: 8838.123222 | F117: 391160.5203 | G117: 921160.5203 | AD117: 0
B118: AÑO | C118: APORTACIONES | E118: RENDIMIENTO | G118: ACUMULADO
C119: MENSUAL | D119: SALDO | E119: MENSUAL | F119: SALDO
A120: =IF(C120=0,0,1) -> 1 | B120: 9 | C120: =IF(F$7>=9,C117*(1+F$9),0) -> 5000 | D120: =(D117+C120)*A120 -> 535000 | E120: =((G117+C120)*T$6)*A120 -> 8972.18004 | F120: =(F117+E120)*A120 -> 400132.7003 | G120: 935132.7003 | AD120: =IF(AG$7>=9,AD117*(1+AG$9),0) -> 0
A121: =A120 -> 1 | C121: =C120 -> 5000 | D121: 540000 | E121: 9107.535535 | F121: 409240.2359 | G121: 949240.2359 | AD121: =AD120 -> 0
A122: =A121 -> 1 | C122: 5000 | D122: 545000 | E122: 9244.202285 | F122: 418484.4382 | G122: 963484.4382 | AD122: 0
A123: 1 | C123: 5000 | D123: 550000 | E123: 9382.192995 | F123: 427866.6312 | G123: 977866.6312 | AD123: 0
A124: 1 | C124: 5000 | D124: 555000 | E124: 9521.520489 | F124: 437388.1516 | G124: 992388.1516 | AD124: 0
A125: 1 | C125: 5000 | D125: 560000 | E125: 9662.197719 | F125: 447050.3494 | G125: 1007050.349 | AD125: 0
A126: 1 | C126: 5000 | D126: 565000 | E126: 9804.237759 | F126: 456854.5871 | G126: 1021854.587 | AD126: 0
A127: 1 | C127: 5000 | D127: 570000 | E127: 9947.653813 | F127: 466802.2409 | G127: 1036802.241 | AD127: 0
A128: 1 | C128: 5000 | D128: 575000 | E128: 10092.45921 | F128: 476894.7001 | G128: 1051894.7 | AD128: 0
A129: 1 | C129: 5000 | D129: 580000 | E129: 10238.66741 | F129: 487133.3676 | G129: 1067133.368 | AD129: 0
A130: 1 | C130: 5000 | D130: 585000 | E130: 10386.292 | F130: 497519.6596 | G130: 1082519.66 | AD130: 0
A131: 1 | C131: 5000 | D131: 590000 | E131: 10535.3467 | F131: 508055.0063 | G131: 1098055.006 | AD131: 0
A132: =IF(C132=0,0,1) -> 1 | B132: 10 | C132: =IF(F$7>=10,C131*(1+F$9),0) -> 5000 | D132: 595000 | E132: 10685.84537 | F132: 518740.8516 | G132: 1113740.852 | AD132: =IF(AG$7>=10,AD131*(1+AG$9),0) -> 0
A133: =A132 -> 1 | C133: =C132 -> 5000 | D133: 600000 | E133: 10837.802 | F133: 529578.6536 | G133: 1129578.654 | AD133: =AD132 -> 0
A134: =A133 -> 1 | C134: 5000 | D134: 605000 | E134: 10991.23071 | F134: 540569.8843 | G134: 1145569.884 | AD134: 0
A135: 1 | C135: 5000 | D135: 610000 | E135: 11146.14575 | F135: 551716.0301 | G135: 1161716.03 | AD135: 0
A136: 1 | C136: 5000 | D136: 615000 | E136: 11302.56154 | F136: 563018.5916 | G136: 1178018.592 | AD136: 0
A137: 1 | C137: 5000 | D137: 620000 | E137: 11460.49261 | F137: 574479.0842 | G137: 1194479.084 | AD137: 0
A138: 1 | C138: 5000 | D138: 625000 | E138: 11619.95363 | F138: 586099.0379 | G138: 1211099.038 | AD138: 0
A139: 1 | C139: 5000 | D139: 630000 | E139: 11780.95943 | F139: 597879.9973 | G139: 1227879.997 | AD139: 0
A140: 1 | C140: 5000 | D140: 635000 | E140: 11943.52497 | F140: 609823.5223 | G140: 1244823.522 | AD140: 0
A141: 1 | C141: 5000 | D141: 640000 | E141: 12107.66537 | F141: 621931.1876 | G141: 1261931.188 | AD141: 0
A142: 1 | C142: 5000 | D142: 645000 | E142: 12273.39588 | F142: 634204.5835 | G142: 1279204.584 | AD142: 0
A143: 1 | C143: 5000 | D143: 650000 | E143: 12440.7319 | F143: 646645.3154 | G143: 1296645.315 | AD143: 0
B144: AÑO | C144: APORTACIONES | E144: RENDIMIENTO | G144: ACUMULADO
C145: MENSUAL | D145: SALDO | E145: MENSUAL | F145: SALDO
A146: =IF(C146=0,0,1) -> 1 | B146: 11 | C146: =IF(F$7>=11,C143*(1+F$9),0) -> 5000 | D146: =(D143+C146)*A146 -> 655000 | E146: =((G143+C146)*T$6)*A146 -> 12609.68899 | F146: =(F143+E146)*A146 -> 659255.0044 | G146: =D146+F146 -> 1314255.004 | AD146: =IF(AG$7>=9,AD143*(1+AG$9),0) -> 0
A147: =A146 -> 1 | C147: =C146 -> 5000 | D147: =(D146+C147)*A147 -> 660000 | E147: =((G146+C147)*T$6)*A147 -> 12780.28286 | F147: =(F146+E147)*A147 -> 672035.2873 | G147: 1332035.287 | AD147: =AD146 -> 0
A148: =A147 -> 1 | C148: 5000 | D148: 665000 | E148: 12952.52935 | F148: 684987.8166 | G148: 1349987.817 | AD148: 0
A149: 1 | C149: 5000 | D149: 670000 | E149: 13126.44447 | F149: 698114.2611 | G149: 1368114.261 | AD149: 0
A150: 1 | C150: 5000 | D150: 675000 | E150: 13302.0444 | F150: 711416.3055 | G150: 1386416.305 | AD150: 0
A151: 1 | C151: 5000 | D151: 680000 | E151: 13479.34546 | F151: 724895.651 | G151: 1404895.651 | AD151: 0
A152: 1 | C152: 5000 | D152: 685000 | E152: 13658.36412 | F152: 738554.0151 | G152: 1423554.015 | AD152: 0
A153: 1 | C153: 5000 | D153: 690000 | E153: 13839.11702 | F153: 752393.1321 | G153: 1442393.132 | AD153: 0
A154: 1 | C154: 5000 | D154: 695000 | E154: 14021.62097 | F154: 766414.7531 | G154: 1461414.753 | AD154: 0
A155: 1 | C155: 5000 | D155: 700000 | E155: 14205.89292 | F155: 780620.646 | G155: 1480620.646 | AD155: 0
A156: 1 | C156: 5000 | D156: 705000 | E156: 14391.95001 | F156: 795012.596 | G156: 1500012.596 | AD156: 0
A157: 1 | C157: 5000 | D157: 710000 | E157: 14579.80952 | F157: 809592.4055 | G157: 1519592.406 | AD157: 0
A158: =IF(C158=0,0,1) -> 1 | B158: 12 | C158: =IF(F$7>=12,C157*(1+F$9),0) -> 5000 | D158: 715000 | E158: 14769.48893 | F158: 824361.8944 | G158: 1539361.894 | AD158: =IF(AG$7>=10,AD157*(1+AG$9),0) -> 0
A159: =A158 -> 1 | C159: =C158 -> 5000 | D159: 720000 | E159: 14961.00585 | F159: 839322.9003 | G159: 1559322.9 | AD159: =AD158 -> 0
A160: =A159 -> 1 | C160: 5000 | D160: 725000 | E160: 15154.3781 | F160: 854477.2784 | G160: 1579477.278 | AD160: 0
A161: 1 | C161: 5000 | D161: 730000 | E161: 15349.62363 | F161: 869826.902 | G161: 1599826.902 | AD161: 0
A162: 1 | C162: 5000 | D162: 735000 | E162: 15546.76061 | F162: 885373.6626 | G162: 1620373.663 | AD162: 0
A163: 1 | C163: 5000 | D163: 740000 | E163: 15745.80736 | F163: 901119.47 | G163: 1641119.47 | AD163: 0
A164: 1 | C164: 5000 | D164: 745000 | E164: 15946.78237 | F164: 917066.2524 | G164: 1662066.252 | AD164: 0
A165: 1 | C165: 5000 | D165: 750000 | E165: 16149.70432 | F165: 933215.9567 | G165: 1683215.957 | AD165: 0
A166: 1 | C166: 5000 | D166: 755000 | E166: 16354.59208 | F166: 949570.5488 | G166: 1704570.549 | AD166: 0
A167: 1 | C167: 5000 | D167: 760000 | E167: 16561.46469 | F167: 966132.0135 | G167: 1726132.013 | AD167: 0
A168: 1 | C168: 5000 | D168: 765000 | E168: 16770.34138 | F168: 982902.3548 | G168: 1747902.355 | AD168: 0
A169: 1 | C169: 5000 | D169: 770000 | E169: 16981.24156 | F169: 999883.5964 | G169: 1769883.596 | AD169: 0
B170: AÑO | C170: APORTACIONES | E170: RENDIMIENTO | G170: ACUMULADO
C171: MENSUAL | D171: SALDO | E171: MENSUAL | F171: SALDO
A172: =IF(C172=0,0,1) -> 1 | B172: 13 | C172: =IF(F$7>=13,C169*(1+F$9),0) -> 5000 | D172: =(D169+C172)*A172 -> 775000 | E172: =((G169+C172)*T$6)*A172 -> 17194.18484 | F172: =(F169+E172)*A172 -> 1017077.781 | G172: =D172+F172 -> 1792077.781 | AD172: =IF(AG$7>=9,AD169*(1+AG$9),0) -> 0
A173: =A172 -> 1 | C173: =C172 -> 5000 | D173: =(D172+C173)*A173 -> 780000 | E173: =((G172+C173)*T$6)*A173 -> 17409.19101 | F173: =(F172+E173)*A173 -> 1034486.972 | G173: 1814486.972 | AD173: =AD172 -> 0
A174: =A173 -> 1 | C174: 5000 | D174: 785000 | E174: 17626.28004 | F174: 1052113.252 | G174: 1837113.252 | AD174: 0
A175: 1 | C175: 5000 | D175: 790000 | E175: 17845.47213 | F175: 1069958.724 | G175: 1859958.724 | AD175: 0
A176: 1 | C176: 5000 | D176: 795000 | E176: 18066.78764 | F176: 1088025.512 | G176: 1883025.512 | AD176: 0
A177: 1 | C177: 5000 | D177: 800000 | E177: 18290.24715 | F177: 1106315.759 | G177: 1906315.759 | AD177: 0
A178: 1 | C178: 5000 | D178: 805000 | E178: 18515.87142 | F178: 1124831.631 | G178: 1929831.631 | AD178: 0
A179: 1 | C179: 5000 | D179: 810000 | E179: 18743.68142 | F179: 1143575.312 | G179: 1953575.312 | AD179: 0
A180: 1 | C180: 5000 | D180: 815000 | E180: 18973.69834 | F180: 1162549.01 | G180: 1977549.01 | AD180: 0
A181: 1 | C181: 5000 | D181: 820000 | E181: 19205.94354 | F181: 1181754.954 | G181: 2001754.954 | AD181: 0
A182: 1 | C182: 5000 | D182: 825000 | E182: 19440.43862 | F182: 1201195.393 | G182: 2026195.393 | AD182: 0
A183: 1 | C183: 5000 | D183: 830000 | E183: 19677.20537 | F183: 1220872.598 | G183: 2050872.598 | AD183: 0
A184: =IF(C184=0,0,1) -> 1 | B184: 14 | C184: =IF(F$7>=14,C183*(1+F$9),0) -> 5000 | D184: 835000 | E184: 19916.26579 | F184: 1240788.864 | G184: 2075788.864 | AD184: =IF(AG$7>=10,AD183*(1+AG$9),0) -> 0
A185: =A184 -> 1 | C185: =C184 -> 5000 | D185: 840000 | E185: 20157.64212 | F185: 1260946.506 | G185: 2100946.506 | AD185: =AD184 -> 0
A186: =A185 -> 1 | C186: 5000 | D186: 845000 | E186: 20401.35678 | F186: 1281347.863 | G186: 2126347.863 | AD186: 0
A187: 1 | C187: 5000 | D187: 850000 | E187: 20647.43242 | F187: 1301995.295 | G187: 2151995.295 | AD187: 0
A188: 1 | C188: 5000 | D188: 855000 | E188: 20895.89192 | F188: 1322891.187 | G188: 2177891.187 | AD188: 0
A189: 1 | C189: 5000 | D189: 860000 | E189: 21146.75837 | F189: 1344037.945 | G189: 2204037.945 | AD189: 0
A190: 1 | C190: 5000 | D190: 865000 | E190: 21400.0551 | F190: 1365438 | G190: 2230438 | AD190: 0
A191: 1 | C191: 5000 | D191: 870000 | E191: 21655.80563 | F191: 1387093.806 | G191: 2257093.806 | AD191: 0
A192: 1 | C192: 5000 | D192: 875000 | E192: 21914.03375 | F192: 1409007.84 | G192: 2284007.84 | AD192: 0
A193: 1 | C193: 5000 | D193: 880000 | E193: 22174.76345 | F193: 1431182.603 | G193: 2311182.603 | AD193: 0
A194: 1 | C194: 5000 | D194: 885000 | E194: 22438.01897 | F194: 1453620.622 | G194: 2338620.622 | AD194: 0
A195: 1 | C195: 5000 | D195: 890000 | E195: 22703.82478 | F195: 1476324.447 | G195: 2366324.447 | AD195: 0
B196: AÑO | C196: APORTACIONES | E196: RENDIMIENTO | G196: ACUMULADO
C197: MENSUAL | D197: SALDO | E197: MENSUAL | F197: SALDO
A198: =IF(C198=0,0,1) -> 1 | B198: 15 | C198: =IF(F$7>=15,C195*(1+F$9),0) -> 5000 | D198: =(D195+C198)*A198 -> 895000 | E198: =((G195+C198)*T$6)*A198 -> 22972.20558 | F198: =(F195+E198)*A198 -> 1499296.653 | G198: =D198+F198 -> 2394296.653 | AD198: =IF(AG$7>=9,AD195*(1+AG$9),0) -> 0
A199: =A198 -> 1 | C199: =C198 -> 5000 | D199: =(D198+C199)*A199 -> 900000 | E199: =((G198+C199)*T$6)*A199 -> 23243.18632 | F199: =(F198+E199)*A199 -> 1522539.839 | G199: 2422539.839 | AD199: =AD198 -> 0
A200: =A199 -> 1 | C200: 5000 | D200: 905000 | E200: 23516.79219 | F200: 1546056.631 | G200: 2451056.631 | AD200: 0
A201: 1 | C201: 5000 | D201: 910000 | E201: 23793.04861 | F201: 1569849.68 | G201: 2479849.68 | AD201: 0
A202: 1 | C202: 5000 | D202: 915000 | E202: 24071.98127 | F202: 1593921.661 | G202: 2508921.661 | AD202: 0
A203: 1 | C203: 5000 | D203: 920000 | E203: 24353.61609 | F203: 1618275.277 | G203: 2538275.277 | AD203: 0
... 70 more rows

Sheet Mesada
S3: Caital Inicial | T3: =IF(F6<S8,0,IF(F6<S9,50000,IF(F6<S10,100000,IF(F6<S11,250000,500000)))) -> 500000
C4: Meta | S4: Tasa anual efectiva | T4: =VLOOKUP(T3,S8:AC11,(F8+1),FALSE) -> 0.1116
S5: Tasa anual | T5: =VLOOKUP(T4,T14:U21,2,TRUE) -> 0.12
D6: Capital Inicial | F6: 500000 | S6: Tasa mensual efectiva | T6: =T4/12 -> 0.0093
D7: Disposición Mensual | F7: =D15 -> 4650 | K7: Restaurar fórmulas tablas | M7: Habilitar aportaciones manuales | T7: 1 | U7: 2 | V7: 3 | W7: 4 | X7: 5 | Y7: 6 | Z7: 7 | AA7: 8 | AB7: 9 | AC7: 10 | AD7: =AB15 -> 0
D8: Años | F8: 10 | S8: 50000 | T8: 0.0837 | U8: 0.08835 | V8: 0.093 | W8: 0.09765 | X8: 0.1023 | Y8: 0.1023 | Z8: 0.1023 | AA8: 0.1023 | AB8: 0.1023 | AC8: 0.1023
C9: Tasa anual efectiva | F9: =T5 -> 0.12 | S9: 100000 | T9: 0.08835 | U9: 0.093 | V9: 0.09765 | W9: 0.1023 | X9: 0.10695 | Y9: 0.10695 | Z9: 0.10695 | AA9: 0.10695 | AB9: 0.10695 | AC9: 0.10695
S10: 250000 | T10: 0.093 | U10: 0.09765 | V10: 0.1023 | W10: 0.10695 | X10: 0.1116 | Y10: 0.1116 | Z10: 0.1116 | AA10: 0.1116 | AB10: 0.1116 | AC10: 0.1116
D11: Restaurar | F11: Manual | S11: 500000 | T11: 0.09765 | U11: 0.1023 | V11: 0.10695 | W11: 0.1116 | X11: 0.1116 | Y11: 0.1116 | Z11: 0.1116 | AA11: 0.1116 | AB11: 0.1116 | AC11: 0.1116
B13: AÑO | D13: RENDIMIENTO | F13: DISPOSICIÓN | T13: Tasa anual efectiva | U13: Tasa anual
C14: SALDO | D14: MENSUAL | E14: ACUMULADO | F14: MENSUAL | T14: 0.0837 | U14: 0.09
B15: 0 | C15: =F6 -> 500000 | D15: =C15*T$6 -> 4650 | E15: =D15 -> 4650 | F15: =-F7 -> -4650 | T15: 0.08835 | U15: 0.095 | AD15: =-AD7 -> 0
A16: =IF(F16=0,0,1) -> 1 | B16: 1 | C16: =C15+D15+F15 -> 500000 | D16: =C16*T$6 -> 4650 | E16: =(E15+D16)*A16 -> 9300 | F16: =IF(F8>=1,-F$7,0) -> -4650 | T16: 0.093 | U16: 0.1 | AD16: =IF(AD8>=1,-AD$7,0) -> 0
A17: =A16 -> 1 | C17: =C16+D16+F16 -> 500000 | D17: 4650 | E17: 13950 | F17: =F16 -> -4650 | T17: 0.09765 | U17: 0.105 | AD17: =AD16 -> 0
A18: =A17 -> 1 | C18: 500000 | D18: 4650 | E18: 18600 | F18: =F17 -> -4650 | T18: 0.1023 | U18: 0.11 | AD18: =AD17 -> 0
A19: 1 | C19: 500000 | D19: 4650 | E19: 23250 | F19: -4650 | T19: 0.10695 | U19: 0.115 | AD19: 0
A20: 1 | C20: 500000 | D20: 4650 | E20: 27900 | F20: -4650 | T20: 0.1116 | U20: 0.12 | AD20: 0
A21: 1 | C21: 500000 | D21: 4650 | E21: 32550 | F21: -4650 | T21: 0.11625 | U21: 0.125 | AD21: 0
A22: 1 | C22: 500000 | D22: 4650 | E22: 37200 | F22: -4650 | AD22: 0
A23: 1 | C23: 500000 | D23: 4650 | E23: 41850 | F23: -4650 | AD23: 0
A24: 1 | C24: 500000 | D24: 4650 | E24: 46500 | F24: -4650 | AD24: 0
A25: 1 | C25: 500000 | D25: 4650 | E25: 51150 | F25: -4650 | AD25: 0
A26: 1 | C26: 500000 | D26: 4650 | E26: 55800 | F26: -4650 | AD26: 0
A27: 1 | C27: 500000 | D27: 4650 | E27: 60450 | F27: -4650 | AD27: 0 | AF27: TABLA ANUAL
A28: =IF(F28=0,0,1) -> 1 | B28: 2 | C28: 500000 | D28: 4650 | E28: =IF(F$8<B28,0,(E27+D28)*A28) -> 65100 | F28: =IF(F$8<B28,0,F27) -> -4650 | AD28: =IF(AD$8<Z28,0,AD27) -> 0 | AF28: Año | AH28: Rendimiento | AI28: Acumulado
A29: =A28 -> 1 | C29: 500000 | D29: 4650 | E29: 69750 | F29: =IF(F$8<B29,0,F28) -> -4650 | AD29: =IF(AD$8<Z29,0,AD28) -> 0 | AF29: 0 | AH29: =D15 -> 4650 | AI29: =AH29 -> 4650
A30: =A29 -> 1 | C30: 500000 | D30: 4650 | E30: 74400 | F30: -4650 | AD30: 0 | AF30: 1 | AH30: =D16 -> 4650 | AI30: =AI29+AH30 -> 9300
A31: 1 | C31: 500000 | D31: 4650 | E31: 79050 | F31: -4650 | AD31: 0 | AF31: 2 | AH31: =D17 -> 4650 | AI31: =AI30+AH31 -> 13950
A32: 1 | C32: 500000 | D32: 4650 | E32: 83700 | F32: -4650 | AD32: 0 | AF32: 3 | AH32: 4650 | AI32: 18600
A33: 1 | C33: 500000 | D33: 4650 | E33: 88350 | F33: -4650 | AD33: 0 | AF33: 4 | AH33: 4650 | AI33: 23250
A34: 1 | C34: 500000 | D34: 4650 | E34: 93000 | F34: -4650 | AD34: 0 | AF34: 5 | AH34: 4650 | AI34: 27900
A35: 1 | C35: 500000 | D35: 4650 | E35: 97650 | F35: -4650 | AD35: 0 | AF35: 6 | AH35: 4650 | AI35: 32550
A36: 1 | C36: 500000 | D36: 4650 | E36: 102300 | F36: -4650 | AD36: 0 | AF36: 7 | AH36: 4650 | AI36: 37200
A37: 1 | C37: 500000 | D37: 4650 | E37: 106950 | F37: -4650 | AD37: 0 | AF37: 8 | AH37: 4650 | AI37: 41850
A38: 1 | C38: 500000 | D38: 4650 | E38: 111600 | F38: -4650 | AD38: 0 | AF38: 9 | AH38: 4650 | AI38: 46500
A39: 1 | C39: 500000 | D39: 4650 | E39: 116250 | F39: -4650 | AD39: 0 | AF39: 10 | AH39: =D25 -> 4650 | AI39: =AI38+AH39 -> 51150
A40: =IF(F40=0,0,1) -> 1 | B40: 3 | C40: 500000 | D40: 4650 | E40: 120900 | F40: -4650 | AD40: 0 | AF40: 11 | AH40: 4650 | AI40: 55800
A41: =A40 -> 1 | C41: 500000 | D41: 4650 | E41: 125550 | F41: -4650 | AD41: 0 | AF41: 12 | AH41: =D27 -> 4650 | AI41: =AI40+AH41 -> 60450
A42: =A41 -> 1 | C42: 500000 | D42: 4650 | E42: 130200 | F42: -4650 | AD42: 0
A43: 1 | C43: 500000 | D43: 4650 | E43: 134850 | F43: -4650 | AD43: 0
A44: 1 | C44: 500000 | D44: 4650 | E44: 139500 | F44: -4650 | AD44: 0
A45: 1 | C45: 500000 | D45: 4650 | E45: 144150 | F45: -4650 | AD45: 0
A46: 1 | C46: 500000 | D46: 4650 | E46: 148800 | F46: -4650 | AD46: 0
A47: 1 | C47: 500000 | D47: 4650 | E47: 153450 | F47: -4650 | AD47: 0
A48: 1 | C48: 500000 | D48: 4650 | E48: 158100 | F48: -4650 | AD48: 0
A49: 1 | C49: 500000 | D49: 4650 | E49: 162750 | F49: -4650 | AD49: 0
A50: 1 | C50: 500000 | D50: 4650 | E50: 167400 | F50: -4650 | AD50: 0
A51: 1 | C51: 500000 | D51: 4650 | E51: 172050 | F51: -4650 | AD51: 0
A52: =IF(F52=0,0,1) -> 1 | B52: 4 | C52: 500000 | D52: 4650 | E52: 176700 | F52: -4650 | AD52: 0
A53: =A52 -> 1 | C53: 500000 | D53: 4650 | E53: 181350 | F53: -4650 | AD53: 0
A54: =A53 -> 1 | C54: 500000 | D54: 4650 | E54: 186000 | F54: -4650 | AD54: 0
A55: 1 | C55: 500000 | D55: 4650 | E55: 190650 | F55: -4650 | AD55: 0
A56: 1 | C56: 500000 | D56: 4650 | E56: 195300 | F56: -4650 | AD56: 0
A57: 1 | C57: 500000 | D57: 4650 | E57: 199950 | F57: -4650 | AD57: 0
A58: 1 | C58: 500000 | D58: 4650 | E58: 204600 | F58: -4650 | AD58: 0
A59: 1 | C59: 500000 | D59: 4650 | E59: 209250 | F59: -4650 | AD59: 0
A60: 1 | C60: 500000 | D60: 4650 | E60: =IF(F$8<B60,0,(E59+D60)*A60) -> 213900 | F60: -4650 | AD60: 0
A61: 1 | C61: 500000 | D61: 4650 | E61: 218550 | F61: -4650 | AD61: 0
A62: 1 | C62: 500000 | D62: 4650 | E62: 223200 | F62: -4650 | AD62: 0
A63: 1 | C63: 500000 | D63: 4650 | E63: 227850 | F63: -4650 | AD63: 0
A64: =IF(F64=0,0,1) -> 1 | B64: 5 | C64: 500000 | D64: 4650 | E64: 232500 | F64: -4650 | AD64: 0
A65: =A64 -> 1 | C65: 500000 | D65: 4650 | E65: 237150 | F65: -4650 | AD65: 0
A66: =A65 -> 1 | C66: 500000 | D66: 4650 | E66: 241800 | F66: -4650 | AD66: 0
A67: 1 | C67: 500000 | D67: 4650 | E67: 246450 | F67: -4650 | AD67: 0
A68: 1 | C68: 500000 | D68: 4650 | E68: 251100 | F68: -4650 | AD68: 0
A69: 1 | C69: 500000 | D69: 4650 | E69: 255750 | F69: -4650 | AD69: 0
A70: 1 | C70: 500000 | D70: 4650 | E70: 260400 | F70: -4650 | AD70: 0
A71: 1 | C71: 500000 | D71: 4650 | E71: 265050 | F71: -4650 | AD71: 0
A72: 1 | C72: 500000 | D72: 4650 | E72: 269700 | F72: -4650 | AD72: 0
A73: 1 | C73: 500000 | D73: 4650 | E73: 274350 | F73: -4650 | AD73: 0
A74: 1 | C74: 500000 | D74: 4650 | E74: 279000 | F74: -4650 | AD74: 0
A75: 1 | C75: 500000 | D75: 4650 | E75: 283650 | F75: -4650 | AD75: 0
A76: =IF(F76=0,0,1) -> 1 | B76: 6 | C76: 500000 | D76: 4650 | E76: 288300 | F76: -4650 | AD76: 0
A77: =A76 -> 1 | C77: 500000 | D77: 4650 | E77: 292950 | F77: -4650 | AD77: 0
A78: =A77 -> 1 | C78: 500000 | D78: 4650 | E78: 297600 | F78: -4650 | AD78: 0
A79: 1 | C79: 500000 | D79: 4650 | E79: 302250 | F79: -4650 | AD79: 0
A80: 1 | C80: 500000 | D80: =C80*T$6 -> 4650 | E80: 306900 | F80: -4650 | AD80: 0
A81: 1 | C81: =C80+D80+F80 -> 500000 | D81: 4650 | E81: 311550 | F81: -4650 | AD81: 0
A82: 1 | C82: 500000 | D82: 4650 | E82: 316200 | F82: -4650 | AD82: 0
A83: 1 | C83: 500000 | D83: 4650 | E83: 320850 | F83: -4650 | AD83: 0
A84: 1 | C84: 500000 | D84: 4650 | E84: 325500 | F84: -4650 | AD84: 0
A85: 1 | C85: 500000 | D85: 4650 | E85: 330150 | F85: -4650 | AD85: 0
A86: 1 | C86: 500000 | D86: 4650 | E86: 334800 | F86: -4650 | AD86: 0
A87: 1 | C87: 500000 | D87: 4650 | E87: 339450 | F87: -4650 | AD87: 0
A88: =IF(F88=0,0,1) -> 1 | B88: 7 | C88: 500000 | D88: 4650 | E88: 344100 | F88: -4650 | AD88: 0
A89: =A88 -> 1 | C89: 500000 | D89: 4650 | E89: 348750 | F89: -4650 | AD89: 0
A90: =A89 -> 1 | C90: 500000 | D90: 4650 | E90: 353400 | F90: -4650 | AD90: 0
A91: 1 | C91: 500000 | D91: 4650 | E91: 358050 | F91: -4650 | AD91: 0
A92: 1 | C92: 500000 | D92: 4650 | E92: =IF(F$8<B92,0,(E91+D92)*A92) -> 362700 | F92: -4650 | AD92: 0
A93: 1 | C93: 500000 | D93: 4650 | E93: 367350 | F93: =IF(F$8<B93,0,F92) -> -4650 | AD93: =IF(AD$8<Z93,0,AD92) -> 0
A94: 1 | C94: 500000 | D94: 4650 | E94: 372000 | F94: -4650 | AD94: 0
A95: 1 | C95: 500000 | D95: 4650 | E95: 376650 | F95: -4650 | AD95: 0
A96: 1 | C96: 500000 | D96: 4650 | E96: 381300 | F96: -4650 | AD96: 0
A97: 1 | C97: 500000 | D97: 4650 | E97: 385950 | F97: -4650 | AD97: 0
A98: 1 | C98: 500000 | D98: 4650 | E98: 390600 | F98: -4650 | AD98: 0
A99: 1 | C99: 500000 | D99: 4650 | E99: 395250 | F99: -4650 | AD99: 0
A100: =IF(F100=0,0,1) -> 1 | B100: 8 | C100: 500000 | D100: 4650 | E100: 399900 | F100: -4650 | AD100: 0
A101: =A100 -> 1 | C101: 500000 | D101: 4650 | E101: 404550 | F101: -4650 | AD101: 0
A102: =A101 -> 1 | C102: 500000 | D102: 4650 | E102: 409200 | F102: -4650 | AD102: 0
A103: 1 | C103: 500000 | D103: 4650 | E103: 413850 | F103: -4650 | AD103: 0
A104: 1 | C104: 500000 | D104: 4650 | E104: 418500 | F104: -4650 | AD104: 0
A105: 1 | C105: 500000 | D105: 4650 | E105: 423150 | F105: -4650 | AD105: 0
A106: 1 | C106: 500000 | D106: 4650 | E106: 427800 | F106: -4650 | AD106: 0
A107: 1 | C107: 500000 | D107: 4650 | E107: 432450 | F107: -4650 | AD107: 0
A108: 1 | C108: 500000 | D108: 4650 | E108: 437100 | F108: -4650 | AD108: 0
A109: 1 | C109: 500000 | D109: 4650 | E109: 441750 | F109: -4650 | AD109: 0
A110: 1 | C110: 500000 | D110: 4650 | E110: 446400 | F110: -4650 | AD110: 0
A111: 1 | C111: 500000 | D111: 4650 | E111: 451050 | F111: -4650 | AD111: 0
A112: =IF(F112=0,0,1) -> 1 | B112: 9 | C112: 500000 | D112: 4650 | E112: 455700 | F112: -4650 | AD112: 0
A113: =A112 -> 1 | C113: 500000 | D113: 4650 | E113: 460350 | F113: -4650 | AD113: 0
A114: =A113 -> 1 | C114: 500000 | D114: 4650 | E114: 465000 | F114: -4650 | AD114: 0
A115: 1 | C115: 500000 | D115: 4650 | E115: 469650 | F115: -4650 | AD115: 0
A116: 1 | C116: 500000 | D116: 4650 | E116: 474300 | F116: -4650 | AD116: 0
A117: 1 | C117: 500000 | D117: 4650 | E117: 478950 | F117: -4650 | AD117: 0
A118: 1 | C118: 500000 | D118: 4650 | E118: 483600 | F118: -4650 | AD118: 0
A119: 1 | C119: 500000 | D119: 4650 | E119: 488250 | F119: -4650 | AD119: 0
A120: 1 | C120: 500000 | D120: 4650 | E120: 492900 | F120: -4650 | AD120: 0
A121: 1 | C121: 500000 | D121: 4650 | E121: 497550 | F121: -4650 | AD121: 0
A122: 1 | C122: 500000 | D122: 4650 | E122: 502200 | F122: -4650 | AD122: 0
A123: 1 | C123: 500000 | D123: 4650 | E123: 506850 | F123: -4650 | AD123: 0
A124: =IF(F124=0,0,1) -> 1 | B124: 10 | C124: 500000 | D124: 4650 | E124: =IF(F$8<B124,0,(E123+D124)*A124) -> 511500 | F124: -4650 | AD124: 0
A125: =A124 -> 1 | C125: 500000 | D125: 4650 | E125: 516150 | F125: -4650 | AD125: 0
A126: =A125 -> 1 | C126: 500000 | D126: 4650 | E126: 520800 | F126: -4650 | AD126: 0
A127: 1 | C127: 500000 | D127: 4650 | E127: 525450 | F127: -4650 | AD127: 0
A128: 1 | C128: 500000 | D128: 4650 | E128: 530100 | F128: -4650 | AD128: 0
A129: 1 | C129: 500000 | D129: 4650 | E129: 534750 | F129: -4650 | AD129: 0
A130: 1 | C130: 500000 | D130: 4650 | E130: 539400 | F130: -4650 | AD130: 0
A131: 1 | C131: 500000 | D131: 4650 | E131: 544050 | F131: -4650 | AD131: 0
A132: 1 | C132: 500000 | D132: 4650 | E132: 548700 | F132: -4650 | AD132: 0
A133: 1 | C133: 500000 | D133: 4650 | E133: 553350 | F133: -4650 | AD133: 0
A134: 1 | C134: 500000 | D134: 4650 | E134: 558000 | F134: -4650 | AD134: 0
A135: 1 | C135: 500000 | D135: 4650 | E135: 562650 | F135: -4650 | AD135: 0

Sheet Plazo fijo
A1: S I M U L A D O R P L A Z O F I J O
C2: Meta
T3: Caital Inicial | U3: =IF(F4<T8,0,IF(F4<T9,25000,IF(F4<T10,50000,IF(F4<T11,125000,250000)))) -> 25000
C4: Capital Inicial | F4: 25000 | T4: Tasa anual | U4: =VLOOKUP(U3,T8:AR11,F5+1,FALSE) -> 0.095
C5: Meses | F5: 6
B6: =IF(F4<12000," El capital inicial mínimo es de $25,000","") ->  | C6: Tasa anual | F6: =U4 -> 0.095
C7: =IF(F4<25000,"Monto mínimo $25,000","") ->  | U7: 1 | V7: 2 | W7: 3 | X7: 4 | Y7: 5 | Z7: 6 | AA7: 7 | AB7: 8 | AC7: 9 | AD7: 10 | AE7: 11 | AF7: 12 | AG7: 13 | AH7: 14 | AI7: 15 | AJ7: 16 | AK7: 17 | AL7: 18 | AM7: 19 | AN7: 20 | AO7: 21 | AP7: 22 | AQ7: 23 | AR7: 24
B8: =IF(F5<6," El plazo mínimo es de 6 meses",IF(F5>24," El plazo máximo es 24 meses","")) ->  | C8: TABLA DE RENDIMIENTOS | T8: 25000 | U8: 0 | V8: 0 | W8: 0 | X8: 0 | Y8: 0 | Z8: 0.095 | AA8: 0.095 | AB8: 0.095 | AC8: 0.095 | AD8: 0.095 | AE8: 0.095 | AF8: 0.1 | AG8: 0.1 | AH8: 0.1 | AI8: 0.1 | AJ8: 0.1 | AK8: 0.1
C9: Capital | F9: =F4 -> 25000 | T9: 50000 | U9: 0 | V9: 0 | W9: 0 | X9: 0 | Y9: 0 | Z9: 0.1 | AA9: 0.1 | AB9: 0.1 | AC9: 0.1 | AD9: 0.1 | AE9: 0.1 | AF9: 0.105 | AG9: 0.105 | AH9: 0.105 | AI9: 0.105 | AJ9: 0.105 | AK9: 0.105
C10: Rendimiento de período | F10: =F9*F$6/12*F5 -> 1187.5 | T10: 125000 | U10: 0 | V10: 0 | W10: 0 | X10: 0 | Y10: 0 | Z10: 0.105 | AA10: 0.105 | AB10: 0.105 | AC10: 0.105 | AD10: 0.105 | AE10: 0.105 | AF10: 0.11 | AG10: 0.11 | AH10: 0.11 | AI10: 0.11 | AJ10: 0.11 | AK10: 0.11 | AL10: 0.11 | AM10: 0.11 | AN10: 0.11 | AO10: 0.11 | AP10: 0.11 | AQ10: 0.11 | AR10: 0.11
C11: Acumulado | F11: =F9+F10 -> 26187.5 | T11: 250000 | U11: 0 | V11: 0 | W11: 0 | X11: 0 | Y11: 0 | Z11: 0.11 | AA11: 0.11 | AB11: 0.11 | AC11: 0.11 | AD11: 0.11 | AE11: 0.11 | AF11: 0.115 | AG11: 0.115 | AH11: 0.115 | AI11: 0.115 | AJ11: 0.115 | AK11: 0.115 | AL11: 0.115 | AM11: 0.115 | AN11: 0.115 | AO11: 0.115 | AP11: 0.115 | AQ11: 0.115 | AR11: 0.115
C87: Aportación Mensual | E87: =#REF!*2 -> 
C88: Tasa mensual | E88: =F6/12 -> 0.007916666667
